bitfinex-derivatives/quotes_SOLF0:USTF0_20260311
["timestamp","ask_amount","ask_price","bid_price","bid_amount"]
[1773234853950,6.31155901,86.12,86.011,3.89204946]
[1773234854350,162.496,86.152,86.011,3.89204946]
[1773234854351,6.31155901,86.08,86.011,3.89204946]
[1773234854750,10.455,86.078,86.011,3.89204946]
[1773234854952,3.8588009,86.077,86.011,3.89204946]
[1773234855743,3.8588009,86.077,85.991,3.89204946]
[1773234855943,3.8588009,86.072,85.994,3.89204946]
[1773234856545,3.8588009,86.07,85.994,3.89204946]
[1773234856750,3.8588009,86.059,85.974,3.89204946]
[1773234856954,3.8588009,86.059,85.945,11.72]
[1773234856955,3.8588009,86.059,85.946,3.89204946]
[1773234857150,14.3158009,86.056,85.975,3.89204946]
[1773234857551,3.8588009,86.055,85.975,3.89204946]
[1773234857755,3.8588009,86.077,85.981,3.89204946]
[1773234858358,3.8588009,86.099,86.032,3.89204946]
[1773234858544,162.461,86.171,86.032,3.89204946]
[1773234858749,3.8588009,86.122,86.045,14.35104946]
[1773234859151,3.8588009,86.119,86.024,3.89204946]
[1773234859353,3.8588009,86.119,86.044,10.459]
[1773234859549,3.8588009,86.139,86.045,3.89204946]
[1773234859753,19.47292696,86.159,86.061,3.71574935]
[1773234860049,4.02714364,86.149,86.069,3.71574935]
[1773234860254,4.02714364,86.149,86.045,3.71574935]
[1773234860452,4.02714364,86.13,86.047,3.71574935]
[1773234860652,4.02714364,86.119,86.047,3.71574935]
[1773234860850,4.02714364,86.119,86.026,3.71574935]
[1773234861151,4.02714364,86.105,86.027,10.461]
[1773234861348,4.02714364,86.151,86.061,3.71574935]
[1773234861758,4.02714364,86.137,86.067,3.71574935]
[1773234862346,15.44578332,86.159,86.067,3.71574935]
[1773234862347,4.02714364,86.134,86.067,3.71574935]
[1773234862655,4.02714364,86.134,86.044,3.71574935]
[1773234863050,4.02714364,86.128,86.044,3.71574935]
[1773234863453,4.02714364,86.158,86.061,3.71574935]
[1773234863951,4.02714364,86.149,86.061,3.71574935]
[1773234864148,15.44578332,86.159,86.061,3.71574935]
[1773234864149,4.02714364,86.148,86.087,10.454]
[1773234864345,4.02714364,86.148,86.061,3.71574935]
[1773234864547,4.02714364,86.148,86.108,10.451]
[1773234864750,15.44578332,86.159,86.085,3.71574935]
[1773234864951,19.47292696,86.159,86.085,3.71574935]
[1773234865148,4.02714364,86.146,86.077,10.455]
[1773234865352,4.02714364,86.146,86.064,3.71574935]
[1773234866150,4.02714364,86.145,86.064,3.71574935]
[1773234866348,15.44578332,86.159,86.081,3.71574935]
[1773234866754,15.44578332,86.159,86.103,10.451]
[1773234867154,15.44578332,86.159,86.081,3.71574935]
[1773234867350,10.445,86.157,86.091,10.453]
[1773234867552,15.44578332,86.159,86.081,3.71574935]
[1773234868149,6.31155901,86.15,86.081,3.71574935]
[1773234868352,1.0307126,86.149,86.081,3.71574935]
[1773234868658,1.0307126,86.149,86.041,3.71574935]
[1773234869357,10.448,86.136,86.067,10.456]
[1773234869758,11.33693402,86.136,86.067,10.456]
[1773234870256,0.88893402,86.135,86.064,3.71574935]
[1773234870961,0.88893402,86.135,86.075,10.455]
[1773234871464,0.88893402,86.135,86.064,14.17174935]
[1773234871860,10.448,86.131,86.064,14.17174935]
[1773234872066,0.94736267,86.13,86.062,10.457]
[1773234872266,0.94736267,86.13,86.045,3.71574935]
[1773234872654,6.31155901,86.15,86.045,3.71574935]
[1773234872655,0.94736267,86.125,86.061,10.457]
[1773234872960,0.94736267,86.125,86.045,3.71574935]
[1773234874763,10.451,86.11,86.045,3.71574935]
[1773234875071,1.00895412,86.109,86.045,3.71574935]
[1773234875665,10.452,86.099,86.049,10.458]
[1773234875968,1.00895412,86.109,86.045,3.71574935]
[1773234876363,1.00895412,86.109,86.055,10.457]
[1773234877465,10.452,86.1,86.045,3.71574935]
[1773234877669,1.00895412,86.109,86.001,3.71574935]
[1773234878165,10.455,86.074,86.001,3.71574935]
[1773234878370,1.00699685,86.089,86.001,3.71574935]
[1773234879367,1.00699685,86.089,86.015,3.71574935]
[1773234880973,1.00699685,86.089,85.98,6.31155901]
[1773234880974,1.00699685,86.089,86.018,3.8626712]
[1773234881370,1.00699685,86.089,85.981,3.8626712]
[1773234882173,1.00699685,86.089,86.005,3.8626712]
[1773234882977,1.0424377,86.073,85.999,3.8626712]
[1773234883476,1.0424377,86.092,86.025,3.8626712]
[1773234883871,1.28869245,86.079,85.991,3.8626712]
[1773234884271,10.457,86.058,85.999,10.464]
[1773234884476,1.28869245,86.079,85.999,10.464]
[1773234884477,1.28869245,86.079,86.0,3.8626712]
[1773234884672,1.28869245,86.069,86.0,3.8626712]
[1773234884876,1.28869245,86.089,86.016,3.8626712]
[1773234886376,10.457,86.058,86.016,3.8626712]
[1773234887077,10.456,86.067,86.016,3.8626712]
[1773234887674,10.455,86.077,86.018,3.8626712]
[1773234887881,10.455,86.077,86.02,3.8626712]
[1773234888080,10.455,86.077,86.022,3.8626712]
[1773234888279,10.455,86.077,85.99,6.31155901]
[1773234888280,10.455,86.077,86.027,14.3236712]
[1773234888475,10.455,86.077,86.028,13.97792869]
[1773234888681,10.453,86.088,86.03,3.8626712]
[1773234888881,10.453,86.088,85.989,20.931]
[1773234888882,1.05903844,86.107,86.032,3.8626712]
[1773234889076,1.05903844,86.107,86.034,3.8626712]
[1773234889278,1.05903844,86.129,86.036,3.8626712]
[1773234889480,1.05903844,86.129,86.038,3.8626712]
[1773234889680,1.05903536,86.149,86.051,3.99487645]
[1773234889887,1.05903536,86.149,86.053,3.99487645]
[1773234890082,10.447,86.141,86.091,10.453]
[1773234890277,3.99494705,86.129,86.03,6.31155901]
[1773234890584,3.99494705,86.129,86.031,10.13550392]
[1773234890775,3.99494705,86.129,86.043,10.459]
[1773234890979,3.99494705,86.129,86.044,10.13550392]
[1773234891180,3.99494705,86.129,86.012,20.926]
[1773234892080,3.99494705,86.129,86.017,20.924]
[1773234892383,10.453,86.093,86.044,10.459]
[1773234892585,3.99494705,86.109,86.036,3.99487645]
[1773234893088,10.452,86.098,86.042,10.459]
[1773234893289,3.99494705,86.109,86.042,10.459]
[1773234893483,3.99494705,86.109,86.036,3.99487645]
[1773234893888,10.453,86.091,86.047,10.458]
[1773234894689,10.453,86.091,86.038,10.459]
[1773234895084,3.99494705,86.109,86.036,3.99487645]
[1773234895790,10.455,86.078,86.03,10.46]
[1773234895987,3.99494705,86.089,86.037,10.46]
[1773234896583,3.99494705,86.089,86.028,14.45587645]
[1773234896789,3.99494705,86.089,86.028,3.99487645]
[1773234898286,10.455,86.072,86.028,3.99487645]
[1773234898483,6.31155901,86.07,85.995,3.99487645]
[1773234898688,3.99494705,86.048,85.995,3.99487645]
[1773234898888,3.99494705,86.048,85.987,10.466]
[1773234899091,3.99494705,86.048,85.987,14.46087645]
[1773234899285,10.46,86.038,85.987,14.46087645]
[1773234899493,3.99494705,86.048,85.987,14.46087645]
[1773234900093,3.99494705,86.048,85.945,20.942]
[1773234900094,3.99494705,86.048,85.964,3.99487645]
[1773234900294,3.99494705,86.029,85.923,20.947]
[1773234900594,10.464,86.004,85.945,3.99487645]
[1773234900793,3.99494705,86.029,85.945,3.99487645]
[1773234901189,3.99494705,86.029,85.912,11.7]
[1773234901190,10.46,86.032,85.981,3.99487645]
[1773234901490,3.99494705,86.048,85.981,3.99487645]
[1773234901998,3.99494705,86.067,85.981,3.99487645]
[1773234902898,3.99494705,86.089,86.007,3.99487645]
[1773234903692,3.99494705,86.088,86.007,3.99487645]
[1773234905495,10.456,86.07,86.019,3.99487645]
[1773234905697,3.99494705,86.088,86.019,3.99487645]
[1773234905897,3.99494705,86.088,86.041,10.459]
[1773234906098,10.453,86.093,86.041,10.459]
[1773234906497,3.99494705,86.107,86.032,3.99487645]
[1773234906890,10.453,86.092,86.038,10.459]
[1773234907190,3.99494705,86.107,86.039,3.99487645]
[1773234907593,10.453,86.096,86.048,10.458]
[1773234907899,3.99494705,86.107,86.048,10.458]
[1773234908196,10.453,86.094,86.04,3.99487645]
[1773234908797,10.453,86.094,86.042,3.99487645]
[1773234909395,10.452,86.103,86.052,10.458]
[1773234909893,3.99494705,86.103,86.042,3.99487645]
[1773234910094,3.99494705,86.099,86.022,3.99487645]
[1773234910396,16.10116089,86.1,85.981,3.99487645]
[1773234910793,16.10116089,86.1,86.006,3.99487645]
[1773234911790,2.90399501,86.099,86.006,3.99487645]
[1773234912190,16.10116089,86.1,86.006,3.99487645]
[1773234912392,1.1027845,86.079,86.006,3.99487645]
[1773234912597,10.456,86.069,86.015,10.462]
[1773234912792,1.1027845,86.079,86.006,3.99487645]
[1773234913502,1.1027845,86.079,85.966,3.99487645]
[1773234913897,10.457,86.062,86.005,10.463]
[1773234914202,1.1027845,86.079,86.006,3.99487645]
[1773234915002,10.456,86.071,86.019,10.462]
[1773234915201,1.1027845,86.079,86.006,3.99487645]
[1773234915698,1.1027845,86.079,85.98,6.29621384]
[1773234915699,10.456,86.063,86.013,3.99487645]
[1773234915894,1.1027845,86.079,86.013,3.99487645]
[1773234916705,10.457,86.056,86.013,3.99487645]
[1773234916907,1.1027845,86.079,86.013,3.99487645]
[1773234917199,1.10095963,86.074,86.023,10.461]
[1773234917804,1.10095963,86.074,86.011,14.45787645]
[1773234918099,1.08133534,86.072,85.99,3.99487645]
[1773234918293,1.08133534,86.07,85.99,3.99487645]
[1773234918496,1.08133534,86.068,85.99,3.99487645]
[1773234918896,1.08133534,86.047,85.99,10.465]
[1773234919101,1.08133534,86.047,85.972,3.99487645]
[1773234919494,10.46,86.036,85.972,3.99487645]
[1773234919697,1.08133534,86.04,85.972,3.99487645]
[1773234920104,2.9049429,86.059,85.972,3.99487645]
[1773234920405,2.9049429,86.059,85.993,3.89172338]
[1773234920605,1.07647595,86.06,85.993,3.89172338]
[1773234920806,10.457,86.059,85.993,3.89172338]
[1773234921010,1.07647595,86.06,85.993,3.89172338]
[1773234921811,11.53347595,86.06,86.003,10.464]
[1773234922310,10.458,86.053,86.003,10.464]
[1773234922513,1.07647595,86.06,85.993,3.89172338]
[1773234923106,1.08392449,86.058,85.993,3.89172338]
[1773234923311,2.90462023,86.057,85.993,3.89172338]
[1773234923511,1.08392449,86.058,85.993,3.89172338]
[1773234924317,2.90488113,86.057,85.993,3.89172338]
[1773234924610,2.90488113,86.056,85.993,3.89172338]
[1773234924811,2.90488113,86.055,85.993,3.89172338]
[1773234925008,1.08392449,86.058,85.993,3.89172338]
[1773234925313,1.08392449,86.058,86.011,10.463]
[1773234925512,10.457,86.061,86.011,10.463]
[1773234926412,1.12859122,86.059,85.975,3.89172338]
[1773234926616,1.12859122,86.057,85.975,3.89172338]
[1773234926810,10.46,86.031,85.977,10.467]
[1773234927207,1.12859122,86.053,85.975,3.89172338]
[1773234927407,1.12859122,86.051,85.975,3.89172338]
[1773234927612,1.12859122,86.049,85.975,3.89172338]
[1773234927814,1.12859122,86.047,85.975,3.89172338]
[1773234928009,1.20016732,86.045,85.975,3.89172338]
[1773234928415,10.46,86.034,85.987,10.466]
[1773234928614,1.20016732,86.045,85.975,3.89172338]
[1773234928817,1.20016732,86.043,85.975,3.89172338]
[1773234929016,1.20016732,86.041,85.975,3.89172338]
[1773234929215,1.20016732,86.039,85.975,3.89172338]
[1773234929415,10.462,86.021,85.976,10.467]
[1773234930712,10.461,86.022,85.977,10.467]
[1773234930906,1.20016732,86.039,85.975,3.89172338]
[1773234931113,1.20108622,86.029,85.952,3.89172338]
[1773234931313,10.463,86.008,85.958,10.469]
[1773234931515,1.20108622,86.025,85.952,3.89172338]
[1773234931812,1.20108622,86.023,85.952,3.89172338]
[1773234932014,1.22165794,86.007,85.952,3.89172338]
[1773234932608,10.465,85.995,85.952,3.89172338]
[1773234932815,1.22165794,86.007,85.952,3.89172338]
[1773234933212,10.465,85.995,85.952,3.89172338]
[1773234933616,1.22165794,86.007,85.935,3.89172338]
[1773234934112,1.22165794,86.007,85.947,10.47]
[1773234934621,10.464,86.002,85.954,10.47]
[1773234934812,1.22165794,86.007,85.935,3.89172338]
[1773234935015,1.22165794,86.007,85.945,10.471]
[1773234935213,1.22165794,86.007,85.935,3.89172338]
[1773234936122,1.22165794,86.007,85.911,3.89172338]
[1773234936320,1.22165794,86.007,85.914,3.89172338]
[1773234936518,11.72,86.019,85.914,3.89172338]
[1773234936719,10.462,86.015,85.968,10.468]
[1773234936922,1.20437361,86.025,85.958,3.89172338]
[1773234938320,10.461,86.024,85.971,10.468]
[1773234938717,2.90540149,86.038,85.958,3.89172338]
[1773234938918,1.1674526,86.041,85.958,3.89172338]
[1773234938919,2.90540149,86.04,85.958,3.89172338]
[1773234939218,1.1674526,86.041,85.958,3.89172338]
[1773234939420,10.461,86.027,85.958,3.89172338]
[1773234940017,10.461,86.027,85.974,10.467]
[1773234940413,1.18413066,86.034,85.958,3.89172338]
[1773234940619,1.18413066,86.034,85.982,10.466]
[1773234941121,1.18413066,86.034,85.981,10.466]
[1773234942427,11.64413066,86.034,85.988,10.466]
[1773234942620,11.64413066,86.034,85.973,4.0432095]
[1773234942621,1.18413066,86.034,85.978,10.467]
[1773234943018,10.462,86.016,85.968,10.468]
[1773234943618,1.22054673,86.019,85.957,4.0432095]
[1773234943827,1.22054673,86.019,85.921,4.0432095]
[1773234944019,1.3351569,86.009,85.921,4.0432095]
[1773234944224,1.3351569,86.009,85.943,4.0432095]
[1773234945220,10.465,85.994,85.947,10.471]
[1773234945423,1.3351569,86.009,85.943,4.0432095]
[1773234947422,10.464,86.0,85.957,10.469]
[1773234947618,1.36613839,86.0,85.943,4.0432095]
[1773234948126,10.466,85.988,85.943,4.0432095]
[1773234948325,1.36613839,86.0,85.943,4.0432095]
[1773234950026,10.466,85.983,85.943,4.0432095]
[1773234950721,10.466,85.983,85.934,10.472]
[1773234951115,10.467,85.976,85.934,10.472]
[1773234952027,1.36613839,86.0,85.941,3.82130715]
[1773234952728,10.464,85.999,85.958,10.469]
[1773234953026,10.464,85.999,85.941,3.82130715]
[1773234953227,10.465,85.993,85.951,10.47]
[1773234953922,1.36613839,86.0,85.959,10.469]
[1773234954724,6.29621384,86.01,85.959,10.469]
[1773234954931,20.919,86.041,85.956,3.82130715]
[1773234954932,1.38877579,86.018,85.956,3.82130715]
[1773234955534,10.465,85.989,85.942,10.471]
[1773234955930,1.38877579,86.003,85.941,3.82130715]
[1773234956132,1.36702587,86.025,85.941,3.82130715]
[1773234958335,10.464,85.999,85.955,3.82130715]
[1773234959429,10.464,86.004,85.955,3.82130715]
[1773234959635,1.36702587,86.025,85.956,10.469]
[1773234959835,1.36702587,86.025,85.955,3.82130715]
[1773234960339,1.29210809,86.009,85.921,3.82130715]
[1773234960742,1.29210809,86.009,85.938,3.82130715]
[1773234961537,11.72,86.026,85.96,3.82130715]
[1773234961538,1.29210809,86.025,85.96,3.82130715]
[1773234962140,1.29210809,86.025,85.969,3.82130715]
[1773234962643,11.72,86.026,85.969,3.82130715]
[1773234962845,11.72,86.055,85.969,3.82130715]
[1773234963035,1.27781609,86.063,85.953,20.94]
[1773234963036,1.27781609,86.063,85.981,3.82130715]
[1773234963436,1.27781609,86.052,85.993,3.82130715]
[1773234964142,6.29621384,86.06,85.993,3.82130715]
[1773234964143,1.2424082,86.044,85.993,3.82130715]
[1773234964450,1.2424082,86.044,85.976,3.82130715]
[1773234964844,10.461,86.025,85.976,3.82130715]
[1773234966636,1.2424082,86.044,85.978,3.82130715]
[1773234966842,1.15861724,86.059,85.978,3.82130715]
[1773234967640,6.29621384,86.08,86.01,3.82130715]
[1773234967944,1.15861724,86.079,86.01,3.82130715]
[1773234968342,10.456,86.068,86.012,10.463]
[1773234968744,10.456,86.068,86.013,3.82130715]
[1773234969637,10.457,86.059,86.013,3.82130715]
[1773234970549,11.72,86.082,86.013,3.82130715]
[1773234970743,1.14180235,86.081,86.013,3.82130715]
[1773234972446,10.457,86.062,86.013,3.82130715]
[1773234973244,10.458,86.052,86.013,3.82130715]
[1773234973540,1.28555716,86.051,85.996,3.82130715]
[1773234973935,10.458,86.048,85.996,3.82130715]
[1773234974136,1.28555716,86.051,85.996,3.82130715]
[1773234975246,10.457,86.059,85.998,3.82130715]
[1773234976455,1.44866296,86.054,86.001,3.82130715]
[1773234977347,10.459,86.04,86.001,3.82130715]
[1773234978541,10.458,86.048,86.001,3.82130715]
[1773234979147,10.458,86.048,86.003,10.464]
[1773234980947,10.459,86.041,86.001,3.82130715]
[1773234981850,10.458,86.051,86.007,10.463]
[1773234982050,2.90460672,86.05,86.007,10.463]
[1773234982244,2.90460672,86.049,86.007,10.463]
[1773234982443,1.44866296,86.054,86.007,10.463]
[1773234982643,2.90460618,86.053,86.007,10.463]
[1773234982843,2.90460618,86.052,86.007,10.463]
[1773234983139,2.90460618,86.051,86.007,10.463]
[1773234983343,10.458,86.048,86.007,10.463]
[1773234984239,10.458,86.048,86.001,3.82130715]
[1773234984646,10.459,86.042,86.001,3.82130715]
[1773234985052,10.459,86.042,86.002,10.464]
[1773234985550,11.72,86.065,85.986,3.70422985]
[1773234985551,1.45181721,86.035,85.986,3.70422985]
[1773234985752,1.45181721,86.035,85.941,21.31333028]
[1773234985753,2.90530199,86.034,85.97,3.70422985]
[1773234985950,1.45825449,86.032,85.97,3.70422985]
[1773234986251,1.45825449,86.03,85.97,3.70422985]
[1773234986450,1.45825449,86.028,85.97,3.70422985]
[1773234986649,7.75929997,86.05,85.97,3.70422985]
[1773234986844,4.3633461,86.049,85.97,3.70422985]
[1773234987153,2.90509161,86.048,85.97,3.70422985]
[1773234987349,2.90509161,86.047,85.97,3.70422985]
[1773234987550,10.46,86.037,85.997,3.70422985]
[1773234987950,1.45825449,86.049,85.997,3.70422985]
[1773234988146,1.46808135,86.047,85.967,3.70422985]
[1773234988353,1.46808135,86.045,85.967,3.70422985]
[1773234988552,1.46808135,86.043,85.967,3.70422985]
[1773234988746,10.461,86.022,85.984,10.466]
[1773234989156,10.461,86.022,85.976,3.70422985]
[1773234989355,1.46808135,86.037,85.976,3.70422985]
[1773234989555,1.46808135,86.035,85.976,3.70422985]
[1773234989757,10.462,86.021,85.978,10.467]
[1773234989955,1.46808135,86.033,85.978,10.467]
[1773234990253,1.46844053,86.031,85.978,10.467]
[1773234990455,1.46844053,86.029,85.978,10.467]
[1773234990757,1.46844053,86.027,85.978,10.467]
[1773234991352,1.46844053,86.025,85.959,3.70422985]
[1773234991554,1.46844053,86.023,85.959,3.70422985]
[1773234991755,1.46844053,86.021,85.959,3.70422985]
[1773234991950,1.48136161,86.019,85.959,3.70422985]
[1773234992150,2.90559805,86.018,85.959,3.70422985]
[1773234992347,4.38702305,86.017,85.959,3.70422985]
[1773234992551,2.90566144,86.016,85.959,3.70422985]
[1773234992749,6.30104548,86.03,85.969,3.70422985]
[1773234992954,11.72,86.033,85.969,3.70422985]
[1773234993152,1.48136161,86.047,85.969,3.70422985]
[1773234993353,6.30104548,86.05,85.969,3.70422985]
[1773234993354,1.48136161,86.045,85.969,3.70422985]
[1773234993553,11.72,86.057,85.958,11.72]
[1773234993554,2.52233633,86.03,85.971,3.70422985]
[1773234993755,2.52233633,86.04,85.981,3.70422985]
[1773234993950,2.9051429,86.039,85.981,3.70422985]
[1773234994250,2.9051429,86.038,85.99,2.52233633]
[1773234994457,2.52233633,86.05,85.991,3.70422985]
[1773234994656,2.90507614,86.049,85.991,3.70422985]
[1773234994858,10.459,86.043,85.996,3.70422985]
[1773234995057,2.90507614,86.042,85.996,3.70422985]
[1773234995258,2.90507614,86.041,85.996,3.70422985]
[1773234995460,5.42741247,86.04,85.996,3.70422985]
[1773234995760,2.90507614,86.039,85.998,14.16822985]
[1773234995958,10.458,86.047,85.998,14.16822985]
[1773234996259,2.90507541,86.046,85.998,14.16822985]
[1773234996460,10.46,86.036,85.998,14.16822985]
[1773234996760,2.90507541,86.035,85.998,14.16822985]
[1773234996957,2.90507541,86.034,85.998,14.16822985]
[1773234997154,2.90507541,86.033,85.998,14.16822985]
[1773234997353,1.48036418,86.059,85.967,11.72]
[1773234997354,2.90507541,86.032,86.004,3.70422985]
[1773234997558,10.459,86.044,86.004,3.70422985]
[1773234997759,2.90488094,86.043,86.004,3.70422985]
[1773234997958,2.90488094,86.042,86.004,3.70422985]
[1773234998160,2.90488094,86.041,86.004,3.70422985]
[1773234998463,2.90488094,86.04,86.004,3.70422985]
[1773234998658,2.90487693,86.039,86.004,3.70422985]
[1773234998855,10.459,86.044,86.004,3.70422985]
[1773234999060,2.90487785,86.043,86.004,3.70422985]
[1773234999259,10.459,86.044,86.004,3.70422985]
[1773234999459,2.90487785,86.043,86.004,3.70422985]
[1773234999660,2.90487785,86.042,86.004,3.70422985]
[1773234999861,2.90487785,86.041,86.004,3.70422985]
[1773235000057,2.90487785,86.04,86.007,3.879246]
[1773235000260,1.48448959,86.075,86.007,3.879246]
[1773235001465,10.455,86.073,86.027,10.461]
[1773235001765,10.455,86.073,86.027,14.340246]
[1773235002060,10.456,86.066,86.027,3.879246]
[1773235003567,15.60109926,86.093,86.027,3.879246]
[1773235003966,10.454,86.084,86.033,10.46]
[1773235004170,3.88109926,86.092,86.033,14.339246]
[1773235004366,3.88109926,86.092,86.003,3.879246]
[1773235004565,3.88109926,86.089,86.003,3.879246]
[1773235004768,3.88109926,86.089,86.024,10.461]
[1773235004967,3.88109926,86.087,86.024,10.461]
[1773235005463,3.88109926,86.087,86.019,3.879246]
[1773235006263,10.457,86.061,86.019,3.879246]
[1773235006578,3.88109926,86.071,86.008,3.879246]
[1773235006766,3.88109926,86.069,86.008,3.879246]
[1773235007165,10.458,86.047,86.009,10.463]
[1773235009364,10.46,86.037,85.981,3.879246]
[1773235009574,3.88109926,86.046,85.981,3.879246]
[1773235010271,3.92296633,86.031,85.981,3.879246]
[1773235010477,3.92296633,86.031,85.944,11.72]
[1773235010478,3.92296633,86.031,85.946,3.76869443]
[1773235010769,3.92296633,86.031,85.974,3.76869443]
[1773235010970,3.92296633,86.049,85.974,3.76869443]
[1773235011963,10.81170606,86.081,85.974,3.76869443]
[1773235012167,3.92296633,86.065,86.006,3.76869443]
[1773235012471,6.82760468,86.064,86.006,3.76869443]
[1773235012669,2.90463835,86.063,86.007,14.23169443]
[1773235012969,3.92296633,86.064,86.007,14.23169443]
[1773235012970,2.90463835,86.062,86.007,14.23169443]
[1773235013171,2.90463835,86.061,86.007,14.23169443]
[1773235013371,2.90463835,86.06,86.007,14.23169443]
[1773235013567,3.92296633,86.058,85.981,3.76869443]
[1773235013763,3.92296633,86.056,85.981,3.76869443]
[1773235013968,3.92296633,86.054,85.981,3.76869443]
[1773235014173,10.46,86.035,85.988,10.465]
[1773235014371,2.90463835,86.034,85.988,10.465]
[1773235014567,2.90463835,86.033,85.988,10.465]
[1773235014768,2.90463835,86.032,85.988,10.465]
[1773235014972,2.90463835,86.031,85.988,10.465]
[1773235015274,2.90463835,86.03,85.988,10.465]
[1773235015475,2.90463835,86.029,85.988,10.465]
[1773235015677,2.90463835,86.028,85.988,10.465]
[1773235015975,10.46,86.031,85.988,10.465]
[1773235016172,2.90513752,86.03,85.988,10.465]
[1773235016372,2.90513752,86.029,85.988,10.465]
[1773235016579,2.90513752,86.028,85.988,10.465]
[1773235016776,3.92296633,86.052,85.981,3.76869443]
[1773235016967,3.92296633,86.05,85.981,3.76869443]
[1773235017173,10.459,86.044,85.981,3.76869443]
[1773235017374,3.92296633,86.042,85.981,3.76869443]
[1773235017568,2.90513771,86.041,85.981,3.76869443]
[1773235017767,2.90513771,86.04,85.995,3.76869443]
[1773235017973,10.458,86.049,85.995,3.76869443]
[1773235018272,2.90462406,86.048,85.995,3.76869443]
[1773235018472,2.90462406,86.047,85.995,3.76869443]
[1773235018679,2.90462406,86.046,85.995,3.76869443]
[1773235018875,2.90462406,86.045,86.002,3.76869443]
[1773235019174,11.72,86.056,86.002,3.76869443]
[1773235019374,2.90461955,86.055,86.002,3.76869443]
[1773235019575,2.90461955,86.054,86.002,3.76869443]
[1773235019776,2.90461955,86.053,86.002,3.76869443]
[1773235019980,10.456,86.066,86.022,3.76869443]
[1773235020175,2.90392823,86.065,86.022,3.76869443]
[1773235020481,2.90392823,86.064,86.022,3.76869443]
[1773235020781,2.90392823,86.063,86.022,3.76869443]
[1773235020972,2.90392823,86.062,86.022,3.76869443]
[1773235021178,2.90392823,86.061,86.022,3.76869443]
[1773235021484,2.90392823,86.06,86.022,3.76869443]
[1773235021781,14.37796633,86.076,86.022,3.76869443]
[1773235021982,2.90392842,86.075,86.022,3.76869443]
[1773235022172,2.90392842,86.074,86.029,10.461]
[1773235022377,3.92296633,86.076,85.993,11.72]
[1773235022378,2.90392842,86.073,86.03,3.76869443]
[1773235022578,2.90392842,86.072,86.03,3.76869443]
[1773235022881,2.90392842,86.071,86.03,3.76869443]
[1773235023078,2.90392842,86.07,86.03,3.76869443]
[1773235023383,2.90392842,86.069,86.03,3.76869443]
[1773235023683,2.90392842,86.068,86.03,3.76869443]
[1773235023878,2.90392842,86.067,86.03,3.76869443]
[1773235024080,2.90392842,86.066,86.03,3.76869443]
[1773235024278,2.90392842,86.065,86.03,3.76869443]
[1773235024477,3.92296633,86.076,86.03,3.76869443]
[1773235024678,2.90386701,86.075,86.03,3.76869443]
[1773235024878,2.90386701,86.074,86.03,3.76869443]
[1773235025079,2.90386701,86.073,86.03,3.76869443]
[1773235025283,2.90386701,86.072,86.03,3.76869443]
[1773235025484,10.456,86.07,86.03,3.76869443]
[1773235025684,2.90386701,86.069,86.03,3.76869443]
[1773235025885,2.90386701,86.068,86.03,3.76869443]
[1773235026081,10.456,86.065,86.016,10.462]
[1773235026385,11.72,86.085,86.016,10.462]
[1773235026386,3.92296633,86.063,86.016,10.462]
[1773235026584,2.90386701,86.062,86.015,3.76869443]
[1773235026886,2.90386701,86.061,86.03,10.46]
[1773235027185,3.92296633,86.078,86.03,10.46]
[1773235027382,11.72,86.085,85.995,14.157375]
[1773235027383,2.90392422,86.077,86.029,3.76869443]
[1773235027586,3.92296633,86.114,86.029,3.76869443]
[1773235028180,11.72,86.115,86.004,21.31333028]
[1773235028181,3.92296633,86.1,86.041,3.76869443]
[1773235029183,3.92296633,86.098,86.041,3.76869443]
[1773235029377,10.454,86.085,86.041,3.76869443]
[1773235034381,10.455,86.077,86.041,3.76869443]
[1773235035588,10.455,86.077,86.011,11.72]
[1773235035589,3.92296633,86.085,86.043,3.76869443]
[1773235036679,10.454,86.084,86.043,3.76869443]
[1773235036881,11.72,86.099,86.029,3.76869443]
[1773235037183,6.29794734,86.13,86.029,3.76869443]
[1773235037184,14.37396633,86.108,86.029,3.76869443]
[1773235037385,3.92296633,86.108,86.068,10.456]
[1773235037982,11.7,86.115,86.068,10.456]
[1773235037983,11.7,86.115,86.068,14.22469443]
[1773235038184,10.45,86.113,86.069,3.76869443]